[Event "*** Titled Tuesday Blitz"]
[Site "Chess.com"]
[Date "2020.11.10"]
[Round "2"]
[White "Chernov_Mikhail"]
[Black "VladimirPotkin"]
[Result "0-1"]
[WhiteElo "2331"]
[BlackElo "2652"]
[TimeControl "180+1"]
[EndTime "10:20:04 PST"]
[Termination "VladimirPotkin won by resignation"]

1. e4 {[%clk 0:03:00.6]} 1... e5 {[%clk 0:02:58.2]} 2. Nf3 {[%clk 0:02:58.6]}
2... Nc6 {[%clk 0:02:58.5]} 3. Bc4 {[%clk 0:02:57.9]} 3... Nf6 {[%clk
0:02:57.8]} 4. Ng5 {[%clk 0:02:54.4]} 4... d5 {[%clk 0:02:52]} 5. exd5 {[%clk
0:02:55.3]} 5... Na5 {[%clk 0:02:50.7]} 6. Bb5+ {[%clk 0:02:55.9]} 6... c6
{[%clk 0:02:51]} 7. dxc6 {[%clk 0:02:56.8]} 7... bxc6 {[%clk 0:02:51.9]} 8. Be2
{[%clk 0:02:57.3]} 8... h6 {[%clk 0:02:47.9]} 9. Nh3 {[%clk 0:02:57.4]} 9... Bd6
{[%clk 0:02:45.9]} 10. d3 {[%clk 0:02:57.2]} 10... O-O {[%clk 0:02:45.1]} 11.
Nc3 {[%clk 0:02:57.4]} 11... c5 {[%clk 0:02:43.2]} 12. O-O {[%clk 0:02:56.9]}
12... Rb8 {[%clk 0:02:40.7]} 13. Kh1 {[%clk 0:02:56.7]} 13... Nc6 {[%clk
0:02:30.9]} 14. Rb1 {[%clk 0:02:46.7]} 14... Nd4 {[%clk 0:02:28.8]} 15. f4
{[%clk 0:02:42.8]} 15... Re8 {[%clk 0:02:21.4]} 16. Bf3 {[%clk 0:02:14.1]} 16...
Bxh3 {[%clk 0:02:15.7]} 17. gxh3 {[%clk 0:02:13.4]} 17... exf4 {[%clk
0:02:16.2]} 18. Ne4 {[%clk 0:01:58.7]} 18... Nxe4 {[%clk 0:02:10.8]} 19. Bxe4
{[%clk 0:01:56.8]} 19... Qh4 {[%clk 0:01:57.8]} 20. c3 {[%clk 0:01:07.5]} 20...
Ne6 {[%clk 0:01:22.6]} 21. Qg4 {[%clk 0:01:04.9]} 21... Qxg4 {[%clk 0:01:12.3]}
22. hxg4 {[%clk 0:01:05.8]} 22... Rb6 {[%clk 0:00:47.2]} 23. Kg2 {[%clk
0:00:51.3]} 23... Reb8 {[%clk 0:00:47.1]} 24. h4 {[%clk 0:00:38.7]} 24... Be5
{[%clk 0:00:46.4]} 25. Ra1 {[%clk 0:00:25.1]} 25... g6 {[%clk 0:00:40.5]} 26.
Bd5 {[%clk 0:00:17.5]} 26... Kg7 {[%clk 0:00:40.6]} 27. a3 {[%clk 0:00:15.5]}
27... a5 {[%clk 0:00:40.1]} 28. Ra2 {[%clk 0:00:15.4]} 28... a4 {[%clk
0:00:40.4]} 29. Bc4 {[%clk 0:00:15.2]} 29... Bf6 {[%clk 0:00:37.9]} 30. Bxe6
{[%clk 0:00:12.6]} 30... Rxe6 {[%clk 0:00:37.9]} 31. Bxf4 {[%clk 0:00:13.5]}
31... Rd8 {[%clk 0:00:38.2]} 32. Rd1 {[%clk 0:00:11.7]} 32... Bxh4 {[%clk
0:00:37.8]} 33. Kf3 {[%clk 0:00:11.7]} 33... Bg5 {[%clk 0:00:32]} 34. Bxg5
{[%clk 0:00:11.8]} 34... hxg5 {[%clk 0:00:32.9]} 35. Raa1 {[%clk 0:00:11.9]}
35... Rde8 {[%clk 0:00:31.6]} 36. Rd2 {[%clk 0:00:11.7]} 36... Re3+ {[%clk
0:00:31.7]} 37. Kf2 {[%clk 0:00:12.3]} 37... Rh3 {[%clk 0:00:31.7]} 38. Rg1
{[%clk 0:00:12.2]} 38... Ree3 {[%clk 0:00:29.8]} 39. Rg2 {[%clk 0:00:12]} 39...
Rxd3 {[%clk 0:00:29.5]} 40. Rxd3 {[%clk 0:00:12.9]} 40... Rxd3 {[%clk
0:00:30.2]} 41. Ke2 {[%clk 0:00:13.8]} 41... c4 {[%clk 0:00:30.8]} 42. Rf2
{[%clk 0:00:13.6]} 42... Rg3 {[%clk 0:00:29.3]} 43. Kd2 {[%clk 0:00:14]} 43...
Rxg4 {[%clk 0:00:29.5]} 0-1

[Event "*** Titled Tuesday Blitz"]
[Site "Chess.com"]
[Date "2020.11.10"]
[Round "2"]
[White "xLuring1"]
[Black "Vanina1989"]
[Result "0-1"]
[WhiteElo "2309"]
[BlackElo "2643"]
[TimeControl "180+1"]
[EndTime "10:20:04 PST"]
[Termination "Vanina1989 won on time"]

1. e4 {[%clk 0:03:00.9]} 1... c6 {[%clk 0:02:58.3]} 2. d4 {[%clk 0:03:00.3]}
2... d5 {[%clk 0:02:58.5]} 3. Nc3 {[%clk 0:03:00.3]} 3... dxe4 {[%clk
0:02:58.1]} 4. Nxe4 {[%clk 0:03:01.2]} 4... Bf5 {[%clk 0:02:58.3]} 5. Ng3 {[%clk
0:03:00.3]} 5... Bg6 {[%clk 0:02:58.7]} 6. Nh3 {[%clk 0:02:57.4]} 6... Nd7
{[%clk 0:02:56.5]} 7. Bc4 {[%clk 0:02:54.7]} 7... e5 {[%clk 0:02:51.9]} 8. O-O
{[%clk 0:02:49.4]} 8... Be7 {[%clk 0:02:47.9]} 9. f4 {[%clk 0:02:48.7]} 9...
exf4 {[%clk 0:02:37.3]} 10. Nxf4 {[%clk 0:02:47]} 10... Ngf6 {[%clk 0:02:37.6]}
11. Nxg6 {[%clk 0:02:29.6]} 11... hxg6 {[%clk 0:02:37.3]} 12. Ne4 {[%clk
0:02:20.6]} 12... O-O {[%clk 0:02:34.9]} 13. Ng5 {[%clk 0:02:10.3]} 13... Nb6
{[%clk 0:02:34.6]} 14. Bb3 {[%clk 0:02:01.9]} 14... c5 {[%clk 0:02:34.3]} 15. c3
{[%clk 0:01:46.1]} 15... cxd4 {[%clk 0:02:33.2]} 16. cxd4 {[%clk 0:01:45.5]}
16... Nbd5 {[%clk 0:02:30.6]} 17. Nf3 {[%clk 0:01:44.1]} 17... Qb6 {[%clk
0:02:28.9]} 18. Bg5 {[%clk 0:01:26.2]} 18... Rad8 {[%clk 0:02:27.5]} 19. Qe1
{[%clk 0:01:22.2]} 19... Rfe8 {[%clk 0:02:22.7]} 20. Qh4 {[%clk 0:01:15.9]}
20... Bb4 {[%clk 0:01:17.6]} 21. Rad1 {[%clk 0:01:07.5]} 21... Re4 {[%clk
0:01:16.9]} 22. Qh3 {[%clk 0:00:56.2]} 22... Rde8 {[%clk 0:01:11.5]} 23. Bxf6
{[%clk 0:00:49.6]} 23... Nxf6 {[%clk 0:01:10.1]} 24. Kh1 {[%clk 0:00:37.7]}
24... Re3 {[%clk 0:00:45.8]} 25. Qh4 {[%clk 0:00:29.7]} 25... R8e4 {[%clk
0:00:45.8]} 26. Qg5 {[%clk 0:00:27.9]} 26... Bd6 {[%clk 0:00:25.6]} 27. Bc2
{[%clk 0:00:07]} 27... Rg4 {[%clk 0:00:24.7]} 28. Qxe3 {[%clk 0:00:04.1]} 28...
Bf4 {[%clk 0:00:22.8]} 29. Qe2 {[%clk 0:00:03.7]} 29... Qxb2 {[%clk 0:00:22.4]}
30. Rfe1 {[%clk 0:00:01.6]} 30... Qxa2 {[%clk 0:00:22.2]} 31. Bb3 {[%clk
0:00:02.1]} 31... Qxb3 {[%clk 0:00:22.1]} 32. Rb1 {[%clk 0:00:02.6]} 32... Qd5
{[%clk 0:00:22]} 33. Ne5 {[%clk 0:00:02.4]} 33... Rh4 {[%clk 0:00:21.4]} 34. h3
{[%clk 0:00:01.9]} 34... Bg3 {[%clk 0:00:21]} 35. Rec1 {[%clk 0:00:01.3]} 35...
Ne4 {[%clk 0:00:20.3]} 0-1

[Event "*** Titled Tuesday Blitz"]
[Site "Chess.com"]
[Date "2020.11.10"]
[Round "2"]
[White "The_Machine04"]
[Black "MPGM"]
[Result "1-0"]
[WhiteElo "2304"]
[BlackElo "2461"]
[TimeControl "180+1"]
[EndTime "10:20:06 PST"]
[Termination "The_Machine04 won by resignation"]

1. d4 {[%clk 0:03:00.7]} 1... d5 {[%clk 0:02:57.9]} 2. Bf4 {[%clk 0:03:00.6]}
2... c5 {[%clk 0:02:56.9]} 3. e3 {[%clk 0:03:00.5]} 3... Nc6 {[%clk 0:02:54.5]}
4. c3 {[%clk 0:03:00.1]} 4... Bf5 {[%clk 0:02:49.7]} 5. Nd2 {[%clk 0:02:56.2]}
5... e6 {[%clk 0:02:49.9]} 6. Ngf3 {[%clk 0:02:54.6]} 6... Qb6 {[%clk
0:02:43.5]} 7. Qb3 {[%clk 0:02:47.9]} 7... c4 {[%clk 0:02:40.3]} 8. Qxb6 {[%clk
0:02:47.6]} 8... axb6 {[%clk 0:02:41.2]} 9. a3 {[%clk 0:02:47.4]} 9... Nf6
{[%clk 0:02:36.7]} 10. Nh4 {[%clk 0:02:46.2]} 10... Bg6 {[%clk 0:02:25.9]} 11.
Nxg6 {[%clk 0:02:45.2]} 11... hxg6 {[%clk 0:02:26.8]} 12. Be2 {[%clk 0:02:35.1]}
12... b5 {[%clk 0:02:26.7]} 13. O-O {[%clk 0:02:31.7]} 13... Kd7 {[%clk
0:02:25]} 14. Nf3 {[%clk 0:02:30.1]} 14... Bd6 {[%clk 0:02:24.4]} 15. Bxd6
{[%clk 0:02:20.4]} 15... Kxd6 {[%clk 0:02:25.3]} 16. Bd1 {[%clk 0:02:18.5]}
16... Ne4 {[%clk 0:02:05.3]} 17. Bc2 {[%clk 0:02:17]} 17... f5 {[%clk
0:02:05.8]} 18. h4 {[%clk 0:02:04.5]} 18... Rh5 {[%clk 0:01:56.3]} 19. g3 {[%clk
0:02:03.7]} 19... Rah8 {[%clk 0:01:51.6]} 20. Kg2 {[%clk 0:01:52.6]} 20... Nd8
{[%clk 0:01:37.6]} 21. Ne5 {[%clk 0:01:45.4]} 21... g5 {[%clk 0:01:36.6]} 22.
Bxe4 {[%clk 0:00:54.8]} 22... dxe4 {[%clk 0:01:37.5]} 23. Rh1 {[%clk 0:00:49.2]}
23... gxh4 {[%clk 0:01:36.8]} 24. Ng6 {[%clk 0:00:45.5]} 24... R8h6 {[%clk
0:01:29.1]} 25. Nf4 {[%clk 0:00:25.9]} 25... Rg5 {[%clk 0:01:28.7]} 26. Rh3
{[%clk 0:00:17.9]} 26... hxg3 {[%clk 0:01:26.1]} 27. fxg3 {[%clk 0:00:12.8]}
27... Rxh3 {[%clk 0:01:25.5]} 28. Kxh3 {[%clk 0:00:13.7]} 28... Nf7 {[%clk
0:01:13.9]} 29. a4 {[%clk 0:00:11.4]} 29... e5 {[%clk 0:01:01.8]} 30. dxe5+
{[%clk 0:00:10.7]} 30... Nxe5 {[%clk 0:01:02.7]} 31. axb5 {[%clk 0:00:10.5]}
31... Nd3 {[%clk 0:01:03.3]} 32. Ra8 {[%clk 0:00:07]} 32... Nf2+ {[%clk
0:00:55.3]} 33. Kg2 {[%clk 0:00:06.6]} 33... Nd1 {[%clk 0:00:53.9]} 34. Rd8+
{[%clk 0:00:06.3]} 34... Kc5 {[%clk 0:00:53.7]} 35. Rxd1 {[%clk 0:00:07.2]}
35... Kxb5 {[%clk 0:00:54]} 36. Rd5+ {[%clk 0:00:07.3]} 36... Ka4 {[%clk
0:00:53.8]} 37. Rd7 {[%clk 0:00:07.3]} 37... b5 {[%clk 0:00:53.7]} 38. Rd2
{[%clk 0:00:05.7]} 38... Kb3 {[%clk 0:00:53.4]} 39. Kh3 {[%clk 0:00:05.9]} 39...
Rg4 {[%clk 0:00:52.9]} 40. Rf2 {[%clk 0:00:03.7]} 40... Ka4 {[%clk 0:00:48.5]}
41. Nd5 {[%clk 0:00:02.8]} 41... g6 {[%clk 0:00:40.5]} 42. Nf6 {[%clk
0:00:02.9]} 42... Rg5 {[%clk 0:00:40.6]} 43. Kh4 {[%clk 0:00:03.3]} 1-0

[Event "*** Titled Tuesday Blitz"]
[Site "Chess.com"]
[Date "2020.11.10"]
[Round "2"]
[White "ailime26"]
[Black "Misticpikachu"]
[Result "1-0"]
[WhiteElo "1959"]
[BlackElo "2339"]
[TimeControl "180+1"]
[EndTime "10:20:07 PST"]
[Termination "ailime26 won by resignation"]

1. e4 {[%clk 0:02:51]} 1... c5 {[%clk 0:02:58.8]} 2. Nf3 {[%clk 0:02:36]} 2...
Nc6 {[%clk 0:02:56.8]} 3. d4 {[%clk 0:02:36.2]} 3... cxd4 {[%clk 0:02:56.8]} 4.
Nxd4 {[%clk 0:02:35.6]} 4... Nf6 {[%clk 0:02:57]} 5. Nc3 {[%clk 0:02:33.4]} 5...
e6 {[%clk 0:02:57]} 6. f3 {[%clk 0:02:25.2]} 6... Bb4 {[%clk 0:02:56.1]} 7. Be3
{[%clk 0:02:23.2]} 7... d5 {[%clk 0:02:55.3]} 8. exd5 {[%clk 0:01:43.3]} 8...
Nxd5 {[%clk 0:02:56.2]} 9. Nxc6 {[%clk 0:01:36.6]} 9... bxc6 {[%clk 0:02:48.8]}
10. Qd3 {[%clk 0:01:34.4]} 10... Qa5 {[%clk 0:02:24.1]} 11. Bd2 {[%clk
0:01:31.3]} 11... O-O {[%clk 0:02:18.7]} 12. a3 {[%clk 0:01:20.9]} 12... Rd8
{[%clk 0:02:13.7]} 13. Nxd5 {[%clk 0:01:14.1]} 13... Bxd2+ {[%clk 0:01:42.7]}
14. Qxd2 {[%clk 0:01:11.4]} 14... Qxd2+ {[%clk 0:01:42.3]} 15. Kxd2 {[%clk
0:01:11.6]} 15... cxd5 {[%clk 0:01:43.2]} 16. Bd3 {[%clk 0:01:10.8]} 16... Rb8
{[%clk 0:01:43.4]} 17. b3 {[%clk 0:01:09.1]} 17... h6 {[%clk 0:01:43.2]} 18. g4
{[%clk 0:01:08.2]} 18... e5 {[%clk 0:01:41.5]} 19. Rae1 {[%clk 0:01:05.3]} 19...
f6 {[%clk 0:01:39.9]} 20. Kc1 {[%clk 0:01:04.2]} 20... Be6 {[%clk 0:01:34.7]}
21. Kb2 {[%clk 0:01:03.4]} 21... Rbc8 {[%clk 0:01:33.5]} 22. h3 {[%clk
0:01:02.3]} 22... d4 {[%clk 0:01:25.2]} 23. f4 {[%clk 0:01:00.1]} 23... Rc5
{[%clk 0:01:22.3]} 24. fxe5 {[%clk 0:00:58.9]} 24... Rxe5 {[%clk 0:01:18.8]} 25.
Rxe5 {[%clk 0:00:57.9]} 25... fxe5 {[%clk 0:01:19.7]} 26. Re1 {[%clk 0:00:57.2]}
26... Rd5 {[%clk 0:01:13.8]} 27. Bc4 {[%clk 0:00:56.4]} 27... Rd6 {[%clk
0:01:14]} 28. Rxe5 {[%clk 0:00:54]} 28... Bxc4 {[%clk 0:01:14]} 29. bxc4 {[%clk
0:00:53.6]} 29... Kf7 {[%clk 0:01:14.9]} 30. Kb3 {[%clk 0:00:51.1]} 30... Kf6
{[%clk 0:01:06.3]} 31. Rd5 {[%clk 0:00:49.2]} 31... Rb6+ {[%clk 0:01:06.4]} 32.
Rb5 {[%clk 0:00:47.3]} 32... Rd6 {[%clk 0:01:03]} 33. c5 {[%clk 0:00:46.7]}
33... Rd8 {[%clk 0:00:59.9]} 34. Kc4 {[%clk 0:00:46.3]} 34... Ke5 {[%clk
0:00:51.2]} 35. c6+ {[%clk 0:00:44.8]} 35... Ke4 {[%clk 0:00:29.1]} 36. Rb7
{[%clk 0:00:39.7]} 36... Ke3 {[%clk 0:00:24.1]} 37. Rd7 {[%clk 0:00:33]} 37...
Rc8 {[%clk 0:00:20.5]} 38. c7 {[%clk 0:00:32.3]} 38... g5 {[%clk 0:00:18]} 39.
Kc5 {[%clk 0:00:32]} 39... Kd2 {[%clk 0:00:14.1]} 40. Rxd4+ {[%clk 0:00:31.1]}
40... Kxc2 {[%clk 0:00:12.8]} 41. Kc6 {[%clk 0:00:30.7]} 41... Kc3 {[%clk
0:00:12.2]} 42. Rd8 {[%clk 0:00:30.2]} 1-0

[Event "*** Titled Tuesday Blitz"]
[Site "Chess.com"]
[Date "2020.11.10"]
[Round "2"]
[White "DarZay"]
[Black "zmeeed67"]
[Result "0-1"]
[WhiteElo "2072"]
[BlackElo "2379"]
[TimeControl "180+1"]
[EndTime "10:20:08 PST"]
[Termination "zmeeed67 won by resignation"]

1. e4 {[%clk 0:03:00]} 1... Nc6 {[%clk 0:02:56.8]} 2. d4 {[%clk 0:02:58.6]} 2...
d6 {[%clk 0:02:55.2]} 3. Nc3 {[%clk 0:02:55.8]} 3... Nf6 {[%clk 0:02:55.2]} 4.
f4 {[%clk 0:02:49.9]} 4... Bg4 {[%clk 0:02:54.3]} 5. Be2 {[%clk 0:02:45.9]} 5...
Bxe2 {[%clk 0:02:54.1]} 6. Ngxe2 {[%clk 0:02:45.7]} 6... e5 {[%clk 0:02:54.5]}
7. d5 {[%clk 0:02:42.5]} 7... Ne7 {[%clk 0:02:53]} 8. O-O {[%clk 0:02:38.2]}
8... exf4 {[%clk 0:02:51.7]} 9. Bxf4 {[%clk 0:02:35.5]} 9... Ng6 {[%clk
0:02:51.4]} 10. Bg5 {[%clk 0:02:34.6]} 10... Be7 {[%clk 0:02:51.8]} 11. Ng3
{[%clk 0:02:29]} 11... h6 {[%clk 0:02:43.7]} 12. Bxf6 {[%clk 0:02:13.2]} 12...
Bxf6 {[%clk 0:02:43.2]} 13. Nf5 {[%clk 0:02:05.2]} 13... Ne5 {[%clk 0:02:28.4]}
14. Qe1 {[%clk 0:01:46.6]} 14... g6 {[%clk 0:02:25.5]} 15. Ne3 {[%clk
0:01:42.4]} 15... O-O {[%clk 0:02:22.4]} 16. Qf2 {[%clk 0:01:29.2]} 16... Bg7
{[%clk 0:02:20.8]} 17. Ne2 {[%clk 0:01:22.6]} 17... Qd7 {[%clk 0:02:05.4]} 18.
Nd4 {[%clk 0:01:18.2]} 18... Ng4 {[%clk 0:01:55.1]} 19. Nxg4 {[%clk 0:01:18]}
19... Qxg4 {[%clk 0:01:54.9]} 20. Rae1 {[%clk 0:01:18.3]} 20... a6 {[%clk
0:01:49.1]} 21. h3 {[%clk 0:01:17.3]} 21... Qd7 {[%clk 0:01:42.8]} 22. c3 {[%clk
0:01:16.6]} 22... Rae8 {[%clk 0:01:42.5]} 23. Qg3 {[%clk 0:01:14.7]} 23... Re7
{[%clk 0:01:37.7]} 24. Rf3 {[%clk 0:01:00.7]} 24... Rfe8 {[%clk 0:01:29.9]} 25.
Rfe3 {[%clk 0:01:00.7]} 25... Qa4 {[%clk 0:01:20.9]} 26. Qg4 {[%clk 0:00:41.5]}
26... Bxd4 {[%clk 0:01:14.6]} 27. cxd4 {[%clk 0:00:37.7]} 27... Qxd4 {[%clk
0:01:13.9]} 28. Qf4 {[%clk 0:00:32.7]} 28... Kg7 {[%clk 0:01:12]} 29. Kh2 {[%clk
0:00:29.9]} 29... Qxb2 {[%clk 0:01:08.2]} 30. Rb3 {[%clk 0:00:24.9]} 30... Qxa2
{[%clk 0:00:50.1]} 31. Rxb7 {[%clk 0:00:24.4]} 31... Qc4 {[%clk 0:00:50.4]} 32.
Rbb1 {[%clk 0:00:09.4]} 32... Rxe4 {[%clk 0:00:45.3]} 33. Rxe4 {[%clk 0:00:09]}
33... Qxe4 {[%clk 0:00:45.3]} 34. Qf1 {[%clk 0:00:04.9]} 34... Qxd5 {[%clk
0:00:41.8]} 35. Rd1 {[%clk 0:00:03.7]} 35... Qe5+ {[%clk 0:00:41.7]} 36. Kh1
{[%clk 0:00:03.9]} 36... Qe2 {[%clk 0:00:40.9]} 37. Qxe2 {[%clk 0:00:03.3]}
37... Rxe2 {[%clk 0:00:40.2]} 38. Rc1 {[%clk 0:00:03.3]} 38... c5 {[%clk
0:00:40.2]} 39. Rd1 {[%clk 0:00:03.3]} 39... Re6 {[%clk 0:00:37.9]} 40. Rd5
{[%clk 0:00:02.4]} 40... Kf6 {[%clk 0:00:35.8]} 0-1

[Event "*** Titled Tuesday Blitz"]
[Site "Chess.com"]
[Date "2020.11.10"]
[Round "2"]
[White "stolencandy13"]
[Black "salomez"]
[Result "0-1"]
[WhiteElo "2385"]
[BlackElo "2162"]
[TimeControl "180+1"]
[EndTime "10:20:12 PST"]
[Termination "salomez won on time"]

1. e4 {[%clk 0:03:00.9]} 1... c5 {[%clk 0:02:59]} 2. Nf3 {[%clk 0:02:59.6]} 2...
e6 {[%clk 0:02:59.7]} 3. d4 {[%clk 0:03:00.1]} 3... cxd4 {[%clk 0:03:00.6]} 4.
Nxd4 {[%clk 0:03:01]} 4... Nf6 {[%clk 0:03:01.1]} 5. Nc3 {[%clk 0:02:58.9]} 5...
Nc6 {[%clk 0:03:01.6]} 6. Nxc6 {[%clk 0:02:56.4]} 6... bxc6 {[%clk 0:03:01.2]}
7. Bd3 {[%clk 0:02:54.3]} 7... d5 {[%clk 0:02:59.1]} 8. O-O {[%clk 0:02:51.5]}
8... Bd6 {[%clk 0:02:52.3]} 9. Bg5 {[%clk 0:02:46.5]} 9... O-O {[%clk
0:02:49.2]} 10. Qe2 {[%clk 0:02:45.4]} 10... h6 {[%clk 0:02:38.4]} 11. Bh4
{[%clk 0:02:44]} 11... Be7 {[%clk 0:02:37.5]} 12. Rad1 {[%clk 0:02:38.8]} 12...
Rb8 {[%clk 0:02:24.9]} 13. b3 {[%clk 0:02:35.7]} 13... Bb7 {[%clk 0:02:16.7]}
14. Bg3 {[%clk 0:02:31.4]} 14... Rc8 {[%clk 0:02:14.9]} 15. Na4 {[%clk
0:02:25.7]} 15... c5 {[%clk 0:02:09.1]} 16. exd5 {[%clk 0:02:19]} 16... exd5
{[%clk 0:02:07.5]} 17. c4 {[%clk 0:02:15.7]} 17... Re8 {[%clk 0:01:53.6]} 18.
cxd5 {[%clk 0:02:10.5]} 18... Bf8 {[%clk 0:01:52.1]} 19. Qc2 {[%clk 0:02:04]}
19... Nxd5 {[%clk 0:01:41.2]} 20. Nc3 {[%clk 0:02:01.8]} 20... Qg5 {[%clk
0:01:23.9]} 21. Nxd5 {[%clk 0:01:54]} 21... Bxd5 {[%clk 0:01:23]} 22. Bf5 {[%clk
0:01:54.2]} 22... Rcd8 {[%clk 0:01:18.5]} 23. h4 {[%clk 0:01:41]} 23... Qf6
{[%clk 0:01:15.2]} 24. Bc7 {[%clk 0:01:36.8]} 24... Qxh4 {[%clk 0:00:56.2]} 25.
Bxd8 {[%clk 0:01:34.4]} 25... Rxd8 {[%clk 0:00:48.2]} 26. Be4 {[%clk 0:01:22.9]}
26... Bxe4 {[%clk 0:00:44.5]} 27. Qc4 {[%clk 0:00:49.4]} 27... Bd6 {[%clk
0:00:42.9]} 28. Rxd6 {[%clk 0:00:41.8]} 28... Rxd6 {[%clk 0:00:40.6]} 29. f3
{[%clk 0:00:34.8]} 29... Rd4 {[%clk 0:00:32.6]} 30. Qxc5 {[%clk 0:00:33.3]}
30... Bg6 {[%clk 0:00:25.4]} 31. Qxa7 {[%clk 0:00:21.1]} 31... Rd2 {[%clk
0:00:24.6]} 32. a4 {[%clk 0:00:13.8]} 32... Bd3 {[%clk 0:00:18.6]} 33. Rc1
{[%clk 0:00:05.5]} 33... Qg3 {[%clk 0:00:17.3]} 34. Qa8+ {[%clk 0:00:05.5]}
34... Kh7 {[%clk 0:00:16.6]} 35. f4 {[%clk 0:00:05.9]} 35... Qf2+ {[%clk
0:00:15.1]} 36. Kh1 {[%clk 0:00:05.4]} 36... Qh4+ {[%clk 0:00:14.3]} 37. Kg1
{[%clk 0:00:00.5]} 37... Qxf4 {[%clk 0:00:13.5]} 0-1

[Event "*** Titled Tuesday Blitz"]
[Site "Chess.com"]
[Date "2020.11.10"]
[Round "2"]
[White "capatl"]
[Black "Karateloru"]
[Result "0-1"]
[WhiteElo "2495"]
[BlackElo "2715"]
[TimeControl "180+1"]
[EndTime "10:20:13 PST"]
[Termination "Karateloru won by resignation"]

1. c4 {[%clk 0:02:47.2]} 1... e5 {[%clk 0:02:59.1]} 2. Nc3 {[%clk 0:02:44.2]}
2... Nc6 {[%clk 0:02:59.6]} 3. Nf3 {[%clk 0:02:40.6]} 3... f5 {[%clk 0:02:50.2]}
4. d3 {[%clk 0:02:10.7]} 4... Nf6 {[%clk 0:02:33.7]} 5. g3 {[%clk 0:02:09.5]}
5... Bb4 {[%clk 0:02:31.5]} 6. Bg2 {[%clk 0:02:08.2]} 6... Bxc3+ {[%clk
0:02:30.1]} 7. bxc3 {[%clk 0:02:07.9]} 7... d6 {[%clk 0:02:31]} 8. O-O {[%clk
0:02:06.3]} 8... O-O {[%clk 0:02:31]} 9. Rb1 {[%clk 0:01:53.6]} 9... Qe8 {[%clk
0:02:25.5]} 10. Nd2 {[%clk 0:01:32.2]} 10... b6 {[%clk 0:02:23.5]} 11. Nb3
{[%clk 0:01:22.5]} 11... Bd7 {[%clk 0:02:16.5]} 12. d4 {[%clk 0:01:08]} 12... e4
{[%clk 0:02:09.2]} 13. e3 {[%clk 0:00:56]} 13... a5 {[%clk 0:01:58.6]} 14. Ba3
{[%clk 0:00:54.3]} 14... a4 {[%clk 0:01:58.3]} 15. Nc1 {[%clk 0:00:51.7]} 15...
Rf7 {[%clk 0:01:54.5]} 16. Ne2 {[%clk 0:00:49.7]} 16... Na5 {[%clk 0:01:53.1]}
17. c5 {[%clk 0:00:39.3]} 17... Nc4 {[%clk 0:01:51.7]} 18. Qc1 {[%clk
0:00:39.1]} 18... d5 {[%clk 0:01:48]} 19. cxb6 {[%clk 0:00:38.2]} 19... cxb6
{[%clk 0:01:47.8]} 20. Bb4 {[%clk 0:00:38.1]} 20... a3 {[%clk 0:01:46.6]} 21.
Nf4 {[%clk 0:00:37.3]} 21... Bb5 {[%clk 0:01:45.4]} 22. Re1 {[%clk 0:00:36.6]}
22... g5 {[%clk 0:01:45]} 23. Ne2 {[%clk 0:00:33.8]} 23... Nb2 {[%clk
0:01:41.3]} 24. Rxb2 {[%clk 0:00:31.1]} 24... axb2 {[%clk 0:01:40.2]} 25. Qxb2
{[%clk 0:00:32]} 25... Bc4 {[%clk 0:01:40.7]} 26. a3 {[%clk 0:00:32.1]} 26...
Qb5 {[%clk 0:01:37.1]} 27. Nc1 {[%clk 0:00:28.3]} 27... Rfa7 {[%clk 0:01:35.6]}
28. Nb3 {[%clk 0:00:27.2]} 28... Kf7 {[%clk 0:01:27.6]} 29. Nd2 {[%clk
0:00:27.2]} 29... Bd3 {[%clk 0:01:26.3]} 30. Bh3 {[%clk 0:00:27.4]} 30... Kg6
{[%clk 0:01:25.1]} 31. Qc1 {[%clk 0:00:26.4]} 31... h5 {[%clk 0:01:22.7]} 32. f4
{[%clk 0:00:25.6]} 32... g4 {[%clk 0:01:17.6]} 33. Bf1 {[%clk 0:00:24.9]} 33...
h4 {[%clk 0:01:17.7]} 34. Bxd3 {[%clk 0:00:23.3]} 34... Qxd3 {[%clk 0:01:16]}
35. Nf1 {[%clk 0:00:24.2]} 35... hxg3 {[%clk 0:01:14.4]} 36. hxg3 {[%clk
0:00:23.5]} 36... Rh7 {[%clk 0:01:11.7]} 37. Qd2 {[%clk 0:00:23.2]} 37... Rah8
{[%clk 0:01:04.5]} 38. Qxd3 {[%clk 0:00:17.7]} 38... exd3 {[%clk 0:01:04.4]} 39.
Rd1 {[%clk 0:00:18.6]} 39... Rh1+ {[%clk 0:01:04.3]} 40. Kg2 {[%clk 0:00:18.9]}
40... Ne4 {[%clk 0:01:04.1]} 41. Rxd3 {[%clk 0:00:18.8]} 41... Nxg3 {[%clk
0:00:50.8]} 42. Kxg3 {[%clk 0:00:11.9]} 42... Rxf1 {[%clk 0:00:49.1]} 43. Rd2
{[%clk 0:00:12.8]} 43... Rh3+ {[%clk 0:00:48.1]} 44. Kg2 {[%clk 0:00:13.1]}
44... Rff3 {[%clk 0:00:48.2]} 45. Ra2 {[%clk 0:00:13.8]} 45... Rxe3 {[%clk
0:00:47.6]} 46. Kf1 {[%clk 0:00:13.5]} 46... Rhf3+ {[%clk 0:00:47.3]} 47. Rf2
{[%clk 0:00:14.4]} 47... Kh5 {[%clk 0:00:45.4]} 48. a4 {[%clk 0:00:13.3]} 48...
g3 {[%clk 0:00:45.2]} 49. Rxf3 {[%clk 0:00:13.1]} 49... Rxf3+ {[%clk 0:00:46.1]}
50. Kg2 {[%clk 0:00:13.8]} 50... Kg4 {[%clk 0:00:46.6]} 51. c4 {[%clk
0:00:12.8]} 51... Rf2+ {[%clk 0:00:46.6]} 52. Kg1 {[%clk 0:00:12.7]} 52... Kf3
{[%clk 0:00:46.7]} 0-1